bitfinex/quotes_SOLUSD_20251223
["timestamp","ask_amount","ask_price","bid_price","bid_amount"]
[1766528406477,8.72916216,124.24,124.19,2.95361199]
[1766528406674,0.68,124.26,124.21,0.67]
[1766528406976,10.43767296,124.24,124.21,0.7]
[1766528407767,10.43767296,124.24,124.18,19.25948209]
[1766528407768,0.72,124.22,124.18,0.7]
[1766528408375,0.72,124.23,124.19,0.7]
[1766528409397,33.18671744,124.24,124.2,0.7]
[1766528409573,0.72,124.23,124.2,0.7]
[1766528421805,25.13767296,124.24,124.2,0.7]
[1766528422002,10.43767296,124.24,124.2,0.7]
[1766528422605,11.15767296,124.24,124.2,0.7]
[1766528425700,0.72,124.23,124.2,0.7]
[1766528426088,11.15767296,124.24,124.2,0.7]
[1766528432117,0.72,124.23,124.2,0.7]
[1766528434836,11.09767296,124.24,124.2,0.7]
[1766528435041,0.66,124.23,124.2,0.7]
[1766528438541,0.67,124.22,124.17,0.67]
[1766528438718,0.67,124.22,124.18,0.67]
[1766528440637,0.67,124.21,124.18,0.67]
[1766528440840,0.67,124.2,124.17,0.67]
[1766528441133,0.67,124.19,124.16,0.87]
[1766528444238,0.67,124.2,124.17,0.67]
[1766528445843,8.72157578,124.2,124.17,0.67]
[1766528448240,0.67,124.19,124.16,0.87]
[1766528448640,2.56004651,124.19,124.16,0.87]
[1766528448842,0.67,124.18,124.16,0.2]
[1766528449426,2.56004651,124.18,124.16,0.2]
[1766528450048,1.89004651,124.18,124.16,0.2]
[1766528450256,2.56004651,124.18,124.16,0.2]
[1766528450750,0.67,124.17,124.16,0.2]
[1766528451849,0.67,124.18,124.16,0.2]
[1766528460639,23.42232921,124.19,124.16,0.87]
[1766528461636,0.67,124.18,124.16,0.87]
[1766528465562,0.67,124.18,124.16,0.2]
[1766528465869,8.05284911,124.18,124.13,0.67]
[1766528466162,1.89004651,124.17,124.11,0.67]
[1766528466468,8.72219134,124.19,124.15,0.67]
[1766528468368,25.13767296,124.2,124.16,0.69]
[1766528468548,25.82767296,124.2,124.16,0.69]
[1766528471272,2.58004651,124.17,124.14,0.69]
[1766528477264,14.7,124.18,124.14,0.69]
[1766528477471,16.59004651,124.19,124.15,0.69]
[1766528477651,17.28004651,124.19,124.15,0.69]
[1766528479069,25.33226213,124.19,124.15,0.69]
[1766528479256,2.58004651,124.18,124.15,0.69]
[1766528481588,10.63302555,124.18,124.15,0.69]
[1766528483080,0.69,124.18,124.15,0.69]
[1766528487885,2.58004651,124.18,124.15,0.69]
[1766528488382,0.69,124.17,124.13,8.05577626]
[1766528488556,2.58004651,124.16,124.13,0.69]
[1766528492490,0.69,124.15,124.12,0.69]
[1766528492670,0.69,124.16,124.12,0.69]
[1766528493075,2.58004651,124.16,124.12,0.69]
[1766528493472,2.58004651,124.15,124.12,0.69]
[1766528493774,2.56004651,124.15,124.12,0.69]
[1766528495690,0.67,124.15,124.12,0.69]
[1766528495985,2.56004651,124.15,124.12,0.69]
[1766528498193,22.75354005,124.17,124.12,0.69]
[1766528498489,2.60004651,124.16,124.13,0.66]
[1766528501490,1.89004651,124.16,124.13,0.66]
[1766528501789,0.71,124.15,124.13,0.66]
[1766528503982,2.60004651,124.15,124.12,8.05648467]
[1766528504188,22.75355658,124.17,124.1,30.58271727]
[1766528504189,0.71,124.13,124.11,0.66]
[1766528504396,2.60004651,124.14,124.11,0.66]
[1766528504694,0.71,124.16,124.12,0.66]
[1766528504906,1.89004651,124.15,124.12,0.66]
[1766528505203,2.60004651,124.15,124.12,0.66]
[1766528506990,1.89004651,124.15,124.13,0.66]
[1766528507695,2.60004651,124.15,124.13,0.66]
[1766528509292,0.71,124.15,124.13,0.66]
[1766528510900,3.66545975,124.16,124.13,0.66]
[1766528511198,0.71,124.15,124.13,0.66]
[1766528514005,3.66545975,124.15,124.13,0.66]
[1766528516606,11.00964868,124.16,124.13,0.66]
[1766528516911,11.71964868,124.16,124.13,0.66]
[1766528517811,109.64143633,124.2,124.13,8.05604679]
[1766528518112,0.71,124.19,124.15,0.66]
[1766528519385,111.88689608,124.2,124.16,0.66]
[1766528519580,119.36910929,124.2,124.16,0.66]
[1766528519803,11.71654806,124.21,124.17,0.66]
[1766528519989,0.71,124.2,124.17,0.66]
[1766528521181,11.71654806,124.21,124.17,0.66]
[1766528522211,11.00654806,124.21,124.17,0.66]
[1766528522387,3.66545975,124.2,124.17,0.66]
[1766528522593,0.71,124.2,124.17,0.66]
[1766528523406,11.00654806,124.21,124.17,0.66]
[1766528523610,0.71,124.2,124.17,0.66]
[1766528524493,3.66545975,124.2,124.17,0.66]
[1766528528511,11.71707899,124.2,124.17,0.66]
[1766528531126,8.71088157,124.21,124.17,0.66]
[1766528531297,0.66,124.2,124.17,0.66]
[1766528534120,11.66634132,124.21,124.17,0.66]
[1766528534808,21.44349143,124.22,124.17,0.66]
[1766528535008,0.66,124.21,124.17,0.66]
[1766528538028,8.04989213,124.23,124.18,0.71]
[1766528538233,20.12348095,124.24,124.19,0.71]
[1766528538234,13.39313271,124.24,124.19,0.71]
[1766528538526,3.61545975,124.23,124.19,0.71]
[1766528539413,0.66,124.2,124.17,14.7]
[1766528539721,0.66,124.2,124.17,15.41]
[1766528539905,3.61545975,124.2,124.17,15.41]
[1766528541630,0.66,124.2,124.17,15.41]
[1766528541832,3.61545975,124.2,124.17,15.41]
[1766528543035,0.66,124.2,124.17,15.41]
[1766528543213,3.61545975,124.2,124.17,15.41]
[1766528544139,11.66704025,124.2,124.17,15.41]
[1766528546146,11.66704025,124.2,124.17,0.71]
[1766528549339,11.66704025,124.2,124.15,0.71]
[1766528549340,0.66,124.18,124.15,0.71]
[1766528550836,0.66,124.17,124.14,0.71]
[1766528551031,0.66,124.16,124.13,0.71]
[1766528551537,3.61545975,124.16,124.13,0.71]
[1766528552938,0.66,124.16,124.13,0.71]
[1766528555842,0.69,124.17,124.14,0.67]
[1766528557218,11.00896494,124.17,124.14,0.67]
[1766528557538,3.67545975,124.15,124.12,0.7]
[1766528557735,0.72,124.15,124.12,0.7]
[1766528559036,0.72,124.14,124.11,15.4]
[1766528559238,2.95545975,124.14,124.12,0.7]
[1766528560242,0.72,124.15,124.12,0.7]
[1766528560445,2.95545975,124.14,124.12,0.7]
[1766528560632,3.67545975,124.15,124.12,0.7]
[1766528570955,2.95545975,124.14,124.12,0.7]
[1766528571538,3.67545975,124.15,124.12,0.7]
[1766528572041,2.61164851,124.15,124.12,0.7]
[1766528573148,0.72,124.15,124.12,0.7]
[1766528573451,0.72,124.14,124.12,0.7]
[1766528574756,1.89164851,124.15,124.12,0.7]
[1766528574942,2.61164851,124.15,124.12,0.7]
[1766528579671,2.61164851,124.14,124.12,0.7]
[1766528580362,1.89164851,124.14,124.12,0.7]
[1766528581743,2.61164851,124.15,124.12,0.7]
[1766528582145,0.72,124.15,124.12,0.7]
[1766528582373,2.61164851,124.15,124.12,0.7]
[1766528585466,14.66923456,124.17,124.14,1.89164851]
[1766528585662,0.72,124.2,124.16,1.89164851]
[1766528585862,0.72,124.2,124.16,16.61164851]
[1766528586063,8.77126033,124.23,124.18,1.89164851]
[1766528586359,8.05126033,124.23,124.2,1.89164851]
[1766528586870,0.66,124.24,124.2,1.89164851]
[1766528587086,0.66,124.24,124.2,9.94307023]
[1766528587246,0.66,124.24,124.2,8.05142172]
[1766528588165,11.09767296,124.24,124.2,8.05142172]
[1766528588469,0.66,124.26,124.21,1.89164851]
[1766528588669,11.09767296,124.26,124.21,1.89164851]
[1766528588966,11.09767296,124.26,124.22,1.89164851]
[1766528589383,0.66,124.26,124.22,1.89164851]
[1766528589562,11.09767296,124.26,124.22,1.89164851]
[1766528590068,0.66,124.25,124.21,1.89164851]
[1766528590657,0.66,124.25,124.21,9.94225849]
[1766528591971,0.66,124.25,124.22,1.89164851]
[1766528594372,8.0471291,124.27,124.23,1.89164851]
[1766528594671,0.66,124.26,124.22,22.75019907]
[1766528594844,0.66,124.26,124.23,1.89164851]
[1766528601876,0.66,124.26,124.22,22.75019907]
[1766528602079,0.66,124.27,124.23,1.89164851]
[1766528605982,0.66,124.27,124.24,1.89164851]
[1766528606971,0.66,124.27,124.23,1.89164851]
[1766528607281,0.66,124.26,124.23,1.89164851]
[1766528608882,0.66,124.26,124.24,1.89164851]
[1766528614865,0.66,124.26,124.23,1.89164851]
[1766528617792,0.66,124.26,124.22,24.64184758]
[1766528619195,0.66,124.26,124.23,1.89164851]
[1766528628996,8.04772356,124.26,124.22,16.59164851]
[1766528629202,0.68,124.25,124.22,16.59164851]
[1766528630308,0.68,124.25,124.22,24.64186239]
[1766528631612,0.68,124.25,124.23,1.89164851]
[1766528631988,0.68,124.25,124.23,2.94929631]
[1766528632807,0.68,124.26,124.23,2.94929631]
[1766528633321,18.48434268,124.28,124.24,2.94929631]
[1766528633605,0.68,124.27,124.24,2.94929631]
[1766528637312,0.68,124.27,124.23,8.04905496]
[1766528637518,0.68,124.27,124.23,10.99835127]
[1766528639215,0.68,124.27,124.23,8.04905496]
[1766528640830,0.68,124.27,124.23,10.99835127]
[1766528645009,0.68,124.27,124.23,8.04905496]
[1766528652329,0.68,124.27,124.23,10.99835127]
[1766528652828,0.68,124.27,124.23,8.04905496]
[1766528660934,0.68,124.27,124.23,10.99835127]
[1766528663715,0.68,124.27,124.23,35.15780365]
[1766528664314,11.13767296,124.28,124.24,17.64929631]
[1766528664520,0.7,124.27,124.24,41.80680325]
[1766528664711,0.1,124.29,124.26,2.94929631]
[1766528665056,0.1,124.29,124.25,2.94929631]
[1766528665057,0.8,124.29,124.25,2.94929631]
[1766528665940,0.8,124.29,124.25,10.99744333]
[1766528667044,0.8,124.29,124.25,24.4844126]
[1766528668944,0.8,124.29,124.26,2.94929631]
[1766528670035,0.8,124.29,124.26,10.99669931]
[1766528670242,0.8,124.29,124.27,2.94929631]
[1766528671950,0.1,124.29,124.27,10.99621821]
[1766528673649,0.1,124.29,124.28,2.94929631]
[1766528674150,0.1,124.29,124.28,17.64929631]
[1766528674648,0.1,124.3,124.28,17.64929631]
[1766528675839,0.1,124.3,124.28,25.69564126]
[1766528676035,0.1,124.3,124.29,2.94929631]
[1766528677255,0.1,124.3,124.28,25.69564126]
[1766528682154,0.81,124.3,124.28,14.7]
[1766528682739,0.81,124.3,124.27,10.99608004]
[1766528682936,0.81,124.3,124.26,8.04751041]
[1766528683141,0.81,124.3,124.26,2.94929631]
[1766528683941,0.81,124.3,124.26,8.04757102]
[1766528684259,0.81,124.3,124.26,10.99686733]
[1766528688172,0.81,124.3,124.27,2.94929631]
[1766528689152,0.81,124.3,124.28,8.04634695]
[1766528690570,0.81,124.3,124.27,10.99629075]
[1766528690761,0.1,124.3,124.27,10.99629075]
[1766528691677,0.81,124.3,124.27,10.99629075]
[1766528693371,0.1,124.31,124.28,0.65]
[1766528693554,0.1,124.31,124.28,3.59929631]
[1766528693761,0.1,124.31,124.28,18.29929631]
[1766528693961,0.1,124.31,124.28,17.23604696]
[1766528694553,0.1,124.31,124.29,8.04569957]
[1766528695581,0.81,124.31,124.29,8.04569957]
[1766528698191,0.81,124.31,124.28,25.28207856]
[1766528702266,0.1,124.31,124.29,2.53604696]
[1766528702614,0.2,124.34,124.31,0.65]
[1766528702809,0.2,124.34,124.32,1.88604696]
[1766528702998,0.2,124.34,124.32,2.53604696]
[1766528703606,0.91,124.37,124.34,0.65]
[1766528703790,0.91,124.37,124.35,0.65]
[1766528704289,0.91,124.37,124.34,25.27808188]
[1766528704805,0.71,124.36,124.33,5.75445626]
[1766528705012,0.71,124.36,124.33,14.7]
[1766528705611,0.71,124.36,124.33,22.74309177]
[1766528705914,0.71,124.36,124.33,14.7]
[1766528706288,0.71,124.36,124.32,10.57950433]
[1766528706508,0.71,124.36,124.32,25.25950433]
[1766528706819,0.71,124.35,124.32,14.68]
[1766528708416,0.69,124.34,124.3,20.56852075]
[1766528708622,0.69,124.34,124.31,14.68]
[1766528708811,1.88604696,124.33,124.29,8.04189806]
[1766528709002,0.69,124.32,124.28,14.68]
[1766528709308,0.69,124.31,124.28,14.68]
[1766528710825,1.88604696,124.29,124.25,0.80482897]
[1766528711007,0.69,124.28,124.24,23.40849309]
[1766528712209,0.69,124.28,124.25,8.72816623]
[1766528712520,0.69,124.3,124.26,0.68]
[1766528712813,0.69,124.3,124.26,15.36]
[1766528714016,0.69,124.28,124.26,14.68]
[1766528718627,20.81326927,124.3,124.26,15.36]
[1766528718923,0.69,124.3,124.27,0.68]
[1766528719125,22.00931623,124.32,124.3,0.68]
[1766528719299,0.69,124.34,124.31,0.68]
[1766528719803,0.69,124.34,124.3,17.26604696]
[1766528720013,0.69,124.34,124.3,15.38]
[1766528720212,0.69,124.34,124.3,17.26604696]
[1766528720599,0.69,124.34,124.3,25.31071696]
[1766528722726,0.69,124.34,124.3,23.42467]
[1766528723111,0.69,124.34,124.3,25.31071696]
[1766528726125,0.69,124.34,124.31,1.88604696]
[1766528734430,0.66,124.33,124.3,0.69]
[1766528734729,0.66,124.33,124.31,1.88604696]
[1766528736030,0.66,124.33,124.3,2.57604696]
[1766528740014,0.66,124.33,124.3,10.62095614]
[1766528742044,0.66,124.35,124.32,1.88604696]
[1766528742230,0.66,124.35,124.33,1.88604696]
[1766528744944,0.66,124.36,124.34,1.88604696]
[1766528745142,0.86,124.37,124.35,1.88604696]
[1766528745952,0.2,124.37,124.35,1.88604696]
[1766528746128,0.2,124.37,124.36,1.88604696]
[1766528748251,0.86,124.37,124.34,23.41216854]
[1766528748545,0.86,124.37,124.35,1.88604696]
[1766528749044,0.86,124.37,124.36,1.88604696]
[1766528749247,0.2,124.37,124.36,1.88604696]
[1766528749548,0.86,124.37,124.35,2.57604696]
[1766528752250,0.86,124.37,124.36,1.88604696]
[1766528753348,0.2,124.38,124.36,1.88604696]
[1766528753545,0.86,124.39,124.37,1.88604696]
[1766528754428,0.2,124.39,124.37,1.88604696]
[1766528754622,0.86,124.39,124.37,1.88604696]
[1766528754824,0.66,124.37,124.34,0.69]
[1766528755047,0.66,124.37,124.34,2.57604696]
[1766528756039,0.66,124.37,124.34,3.63420531]
[1766528762564,0.66,124.36,124.31,2.94420531]
[1766528762771,0.66,124.36,124.32,3.63420531]
[1766528762974,0.66,124.36,124.33,2.94420531]
[1766528763659,0.66,124.36,124.32,0.69]
[1766528763860,0.66,124.35,124.32,11.67788111]
[1766528765173,0.66,124.35,124.32,3.63420531]
[1766528765478,0.66,124.35,124.31,22.72395269]
[1766528765776,0.66,124.33,124.3,2.94420531]
[1766528766173,0.66,124.33,124.29,2.94420531]
[1766528766678,0.66,124.33,124.27,10.99105944]
[1766528766679,0.66,124.32,124.27,10.99105944]
[1766528766972,0.66,124.32,124.27,26.34105944]
[1766528768152,8.04378925,124.32,124.27,26.34105944]
[1766528768477,0.67,124.31,124.27,26.34105944]
[1766528768955,0.67,124.31,124.28,2.94420531]
[1766528772359,0.67,124.31,124.27,26.34105944]
[1766528772665,0.67,124.31,124.28,11.66047651]
[1766528780383,8.04368555,124.33,124.29,2.94420531]
[1766528780568,0.67,124.34,124.31,3.61420531]
[1766528781069,11.10767296,124.34,124.31,3.61420531]
[1766528781267,0.67,124.34,124.31,3.61420531]
[1766528781679,0.67,124.34,124.31,2.94420531]
[1766528783089,0.67,124.34,124.31,10.98851935]
[1766528783676,0.67,124.34,124.31,2.94420531]
[1766528783985,0.67,124.33,124.3,17.62420531]
[1766528784194,0.67,124.33,124.3,18.29420531]
[1766528784689,0.67,124.33,124.3,11.65919903]
[1766528784892,0.67,124.33,124.3,3.61420531]
[1766528788590,0.67,124.33,124.3,2.94420531]
[1766528789394,0.67,124.33,124.3,3.61420531]
[1766528791500,8.04316223,124.33,124.3,2.94420531]
[1766528791793,8.04316223,124.33,124.29,17.62420531]
[1766528791794,0.67,124.32,124.29,17.62420531]
[1766528793101,0.67,124.32,124.29,25.66987726]
[1766528793303,0.67,124.32,124.3,2.94420531]
[1766528799804,0.71,124.31,124.29,2.94420531]
[1766528800005,0.71,124.31,124.28,2.94420531]
[1766528800185,0.71,124.31,124.27,2.94420531]
[1766528800386,0.71,124.31,124.26,26.38182006]
[1766528800581,0.71,124.31,124.26,18.33420531]
[1766528800908,0.71,124.31,124.26,26.38183474]
[1766528801109,0.71,124.28,124.23,0.71]
[1766528801403,10.43767296,124.28,124.23,0.71]
[1766528801594,0.71,124.27,124.23,2.94420531]
[1766528801801,0.71,124.27,124.22,26.38413934]
[1766528801988,0.71,124.26,124.21,3.14420531]
[1766528802394,0.71,124.23,124.18,11.70662586]
[1766528802595,0.71,124.23,124.18,0.71]
[1766528802802,0.71,124.23,124.18,3.65420531]
[1766528803010,0.71,124.23,124.19,2.94420531]
[1766528803920,8.04974132,124.23,124.19,2.94420531]
[1766528804205,0.71,124.22,124.19,10.99637204]
[1766528804412,0.71,124.22,124.19,2.94420531]
[1766528805808,0.71,124.22,124.18,11.70678066]
[1766528806015,0.71,124.22,124.19,2.94420531]
[1766528806211,0.71,124.22,124.18,11.70678066]
[1766528809403,0.71,124.21,124.17,0.2]
[1766528809606,0.71,124.21,124.17,3.14420531]
[1766528811017,0.71,124.2,124.17,0.2]
[1766528818118,0.71,124.2,124.17,0.91]
[1766528820526,0.71,124.19,124.17,0.2]
[1766528820711,0.71,124.19,124.15,0.2]
[1766528821221,0.71,124.17,124.15,0.2]
[1766528823426,0.71,124.17,124.11,10.43767296]
[1766528823427,10.43767296,124.14,124.11,0.71]
[1766528823725,0.71,124.13,124.08,0.81]
[1766528823908,0.71,124.13,124.08,10.04879727]
[1766528824116,0.71,124.13,124.08,10.75879727]
[1766528824828,0.71,124.13,124.08,10.04879727]
[1766528825026,0.71,124.13,124.08,10.75879727]
[1766528825614,0.71,124.12,124.08,0.81]
[1766528825920,0.71,124.12,124.08,10.75902204]
[1766528827213,0.71,124.12,124.08,10.04902204]
[1766528827417,0.71,124.12,124.09,0.72]
[1766528829644,0.69,124.11,124.08,0.1]
[1766528829843,0.69,124.1,124.08,0.1]
[1766528831239,2.57985328,124.1,124.05,0.2]
[1766528831418,0.69,124.09,124.05,0.2]
[1766528831812,0.69,124.09,124.05,0.92]
[1766528832028,0.69,124.08,124.05,0.2]
[1766528832232,0.69,124.07,124.05,0.2]
[1766528832741,0.69,124.06,124.05,0.2]
[1766528833318,0.69,124.06,124.03,0.1]
[1766528833720,8.7506945,124.06,124.03,0.1]
[1766528840519,0.69,124.05,124.02,0.2]
[1766528841049,0.69,124.03,124.0,0.2]
[1766528842546,0.69,124.02,124.0,0.2]
[1766528844952,12.32752624,124.0,123.97,1e-08]
[1766528845156,0.59,123.99,123.97,1e-08]
[1766528845527,10.43767296,123.98,123.97,1e-08]
[1766528845726,0.69,123.97,123.92,1.88985328]
[1766528846057,8.75679556,123.97,123.93,1.88985328]
[1766528846231,0.69,123.96,123.91,8.07022169]
[1766528846552,0.69,123.96,123.92,1.88985328]
[1766528846933,0.69,123.96,123.88,11.24490576]
[1766528847152,9.95664884,123.97,123.87,14.72]
[1766528847153,0.69,123.92,123.87,1.88985328]
[1766528847326,10.43767296,123.92,123.89,1.88985328]
[1766528847649,11.12767296,123.93,123.89,1.88985328]
[1766528847823,11.12767296,123.93,123.9,1.88985328]
[1766528848024,15.41,123.95,123.92,2.60985328]
[1766528848327,15.41,123.95,123.9,0.72]
[1766528848622,15.41,123.95,123.9,2.60985328]
[1766528848623,0.69,123.94,123.9,2.60985328]
[1766528849018,10.43767296,123.96,123.91,1.88985328]
[1766528849225,15.41,123.98,123.95,0.72]
[1766528849469,25.84767296,123.98,123.91,0.72]
[1766528849621,25.84767296,123.98,123.94,0.72]
[1766528850227,0.69,123.97,123.93,1.88985328]
[1766528850545,0.69,123.97,123.93,2.60985328]
[1766528851124,0.69,123.97,123.93,0.72]
[1766528851427,0.69,123.97,123.94,1.88985328]
[1766528851968,0.69,123.97,123.93,2.60985328]
[1766528852131,0.69,123.97,123.94,1.88985328]
[1766528852332,0.69,123.97,123.93,10.6788523]
[1766528853960,0.69,123.97,123.93,0.72]
[1766528854138,8.75663374,123.97,123.93,2.60985328]
[1766528854759,0.69,123.97,123.93,2.60985328]
[1766528855961,0.69,123.97,123.93,8.78897863]
[1766528856351,8.75653355,123.97,123.93,2.60985328]
[1766528856861,0.71,123.96,123.92,2.60985328]
[1766528858139,0.71,123.96,123.92,0.72]
[1766528858362,0.71,123.96,123.92,10.67944214]
[1766528859364,0.71,123.96,123.92,0.72]
[1766528859540,8.77734727,123.96,123.92,0.72]
[1766528859934,0.71,123.95,123.9,8.79075317]
[1766528860242,0.71,123.95,123.91,0.72]
[1766528860652,0.71,123.95,123.92,0.72]
[1766528861673,8.06646769,123.97,123.92,10.67956189]
[1766528861886,11.14767296,123.96,123.92,10.67956189]
[1766528862539,11.14767296,123.96,123.92,2.60985328]
[1766528863272,11.14767296,123.96,123.92,10.67957318]
[1766528863273,0.71,123.95,123.92,10.67957318]
[1766528863644,8.77844125,123.94,123.89,2.60985328]
[1766528863859,0.71,123.93,123.89,10.68129939]
[1766528864237,0.71,123.93,123.9,1.88985328]
[1766528864846,23.51792281,123.95,123.91,2.60985328]
[1766528865060,15.45,123.95,123.91,2.60985328]
[1766528865574,0.71,123.94,123.9,1.88985328]
[1766528865748,0.71,123.93,123.9,1.88985328]
[1766528866157,0.71,123.93,123.89,8.79144611]
[1766528866467,0.71,123.93,123.9,10.6807822]
[1766528866773,0.71,123.94,123.9,10.6807822]
[1766528867948,0.71,123.97,123.93,1.88985328]
[1766528868174,11.14767296,123.97,123.93,1.88985328]
[1766528868474,0.71,123.96,123.93,1.88985328]
[1766528869274,0.71,123.96,123.92,0.72]
[1766528869466,8.77716769,123.96,123.92,2.60985328]
[1766528869775,8.77716769,123.96,123.92,0.72]
[1766528872071,11.14767296,123.97,123.93,2.60985328]
[1766528872275,20.16180441,124.0,123.96,0.72]
[1766528872576,0.71,123.99,123.96,0.72]
[1766528875187,100.87958502,124.08,123.97,1.88985328]
[1766528875350,100.87958502,124.08,123.97,2.59985328]
[1766528875351,0.71,124.02,123.97,2.59985328]
[1766528875552,0.71,124.02,123.98,1.88985328]
[1766528876564,0.71,124.02,123.97,0.71]
[1766528876766,0.71,124.02,123.98,1.88985328]
[1766528877271,0.71,124.02,123.97,8.77607143]
[1766528877476,0.71,124.02,123.98,1.88985328]
[1766528877960,0.71,124.02,123.97,11.7375895]
[1766528878156,0.71,124.02,123.98,11.02733369]
[1766528878471,0.71,124.02,123.97,11.73770551]
[1766528880297,8.06325822,124.02,123.97,11.73770551]
[1766528880589,11.14767296,124.03,123.99,3.67151807]
[1766528880774,11.14767296,124.03,123.99,0.71]
[1766528881571,11.14767296,124.03,124.0,0.71]
[1766528881756,0.71,124.06,124.01,2.96151807]
[1766528881991,3.67151807,124.06,124.01,3.67151807]
[1766528882295,0.71,124.05,124.01,0.71]
[1766528883072,8.77143102,124.05,124.01,0.71]
[1766528883962,108.93933669,124.08,124.04,3.67151807]
[1766528884282,101.58958502,124.08,124.04,3.67151807]
[1766528885093,101.58958502,124.08,124.04,11.73336163]
[1766528885271,0.91,124.1,124.06,3.67151807]
[1766528885471,11.34767296,124.1,124.06,3.67151807]
[1766528885684,10.43767296,124.09,124.06,3.67151807]
[1766528886090,0.71,124.09,124.05,2.96151807]
[1766528886265,11.14767296,124.09,124.05,2.96151807]
[1766528887293,19.15634279,124.09,124.05,2.96151807]
[1766528888267,11.09767296,124.09,124.06,2.96151807]
[1766528890090,11.09767296,124.09,124.05,11.02277172]
[1766528890488,0.66,124.08,124.05,2.96151807]
[1766528890788,0.66,124.08,124.04,17.68151807]
[1766528891176,0.66,124.08,124.04,25.743381]
[1766528891692,0.66,124.08,124.04,2.96151807]
[1766528891891,0.66,124.08,124.04,17.68151807]
[1766528892903,0.66,124.08,124.05,2.96151807]
[1766528893209,18.49671014,124.09,124.05,2.96151807]
[1766528893504,19.15671014,124.09,124.05,2.96151807]
[1766528895683,11.09767296,124.09,124.05,2.96151807]
[1766528895869,10.43767296,124.09,124.06,2.96151807]
[1766528896309,0.86,124.1,124.06,11.02205486]
[1766528896496,0.86,124.1,124.07,2.96151807]
[1766528897775,8.91829034,124.1,124.04,34.87401887]
[1766528898099,0.66,124.09,124.05,8.06087701]
[1766528898400,0.66,124.09,124.05,25.74239508]
[1766528899517,0.66,124.09,124.05,22.78087701]
[1766528899801,0.66,124.09,124.06,2.96151807]
[1766528902600,0.2,124.1,124.06,11.02195484]
[1766528902775,0.86,124.1,124.06,11.02195484]
[1766528902974,0.86,124.1,124.07,2.96151807]
[1766528903597,0.66,124.09,124.06,8.06043677]
[1766528903805,0.66,124.09,124.06,11.02195484]
[1766528904006,8.91804454,124.1,124.06,2.96151807]
[1766528904195,0.66,124.09,124.06,2.96151807]
[1766528904398,0.66,124.09,124.05,25.74261013]
[1766528904777,0.66,124.09,124.05,11.02261013]
[1766528905101,0.66,124.09,124.05,17.68151807]
[1766528905495,0.66,124.09,124.05,2.96151807]
[1766528905800,0.66,124.09,124.05,11.02274941]
[1766528905988,8.71868057,124.09,124.05,11.02274941]
[1766528906582,0.66,124.09,124.05,11.02274941]
[1766528907684,0.66,124.09,124.06,2.96151807]
[1766528909386,0.66,124.09,124.05,11.02274941]
[1766528910529,0.66,124.08,124.03,10.43767296]
[1766528910805,0.66,124.08,124.03,11.02374239]
[1766528911195,0.66,124.08,124.04,2.96151807]
[1766528911388,0.66,124.08,124.05,2.96151807]
[1766528911810,0.66,124.08,124.04,2.96151807]
[1766528913611,0.66,124.07,124.04,2.96151807]
[1766528915487,0.66,124.07,124.03,8.0625655]
[1766528915914,0.66,124.07,124.04,2.96151807]
[1766528917613,0.68,124.06,124.02,8.06293963]
[1766528917922,0.68,124.06,124.03,14.72]